Cogmind - Beta 11 --- EXPLORER MODE // 2022.04.06 @ 19:26:22 Player: Grimbling Result: Self-destructed Performance ------------- Evolutions (8) 4000 Regions Visited (27) 5400 Robots Destroyed (205) 1025 Value Destroyed (10569) 10569 Prototype IDs (50) 1000 Alien Tech Used (0) 0 Bonus (1057) 1057 TOTAL SCORE: 23051 Bonus ------- High Alert Combat Kills 99 Follower Combat Kills 787 Entered Garrisons 200 Used RIF Installer 500 Met Data Miner 300 Friendly Fire -829 Cogmind --------- Core Integrity 1383/1450 Matter 50/300 Energy 78/100 System Corruption 0% Temperature Cool (0) Movement Treading (145) Location -2/Research Parts ------- > --- POWER (3) -------- (None) > --- PROPULSION (6) --- Biometal Heavy Treads Biometal Heavy Treads Flexi-carbon Leg Improved VSS Leg > --- UTILITY (12) ----- Advanced Heat Sink Medium Storage Unit Improved Signal Interpreter Improved Force Field > --- WEAPON (3) ------- Hardcell Cannon Hardcell Cannon Hardcell Cannon > --- INVENTORY (10) --- Improved Heavy Treads Flexi-carbon Leg High-capacity Storage Unit Heart of Steel Peak State ------------ > --- POWER ------------ Particle Reactor Micro Antimatter Reactor Graviton Reactor > --- PROPULSION ------- Enhanced Armored Leg Myomer Leg Biometal Leg Biometal Leg Enhanced Biometal Leg > --- UTILITY ---------- Advanced Cryofiber Web Medium Storage Unit Structural Scanner Experimental Optical Array Improved Signal Interpreter Seismic Detector ECM Suite Reaction Control System Improved Utility Shielding > --- WEAPON ----------- Phase Gun Compact HERF Cannon Gamma Bomb Array > --- INVENTORY -------- Improved VSS Leg Heart of Steel Micro-nuke Launcher [Rating: 118] Favorites ----------- Power F-cell Engine Engine F-cell Engine Power Core Reinforced Fission Core Reactor Compact Particle Reactor Propulsion Flexi-carbon Leg Treads Improved Heavy Treads Leg Flexi-carbon Leg Wheel Centrium Wheel Hover Unit Antigrav System Flight Unit Improved VTOL Module Utility Advanced Heat Sink Device Advanced Heat Sink Storage Medium Storage Unit Processor Improved Signal Interpreter Hackware Hacking Suite Protection Hardened Medium Armor Plating Weapon Heavy Gatling Laser Energy Gun Heavy Gatling Laser Energy Cannon Compact HERF Cannon Ballistic Gun Coil Gun Ballistic Cannon Hardcell Cannon Launcher Micro-nuke Launcher Special Weapon Molecular Deconstructor Impact Weapon Impact Mace Build | -11 -10 -10 -10 -9 -8 -7 -6 -6 -6 -6 -5 -5 -5 -5 -5 -5 -5 -5 -5 -4 -4 -4 -4 -4 -4 -3 -2 ------- Run | Scr Mat Min Exi Min Mat Fac Fac Low Low Dat Pro Fac Was Fac Gar Fac Upp Upp War Pro Fac Was Fac Upp Upp Res Res Slots Evolved 17 | . 1 . . . 4 2 2 . . . . 2 . . . . . . . . 2 . . . . 2 2 Power 2 | . . . . . 1 . . . . . . . . . . . . . . . . . . . . 1 . Propulsion 4 | . . . . . 2 . . . . . . . . . . . . . . . . . . . . 1 1 Utility 10 | . 1 . . . 1 2 2 . . . . 2 . . . . . . . . 1 . . . . . 1 Weapon 1 | . . . . . . . . . . . . . . . . . . . . . 1 . . . . . . Parts Attached 250 | 7 3 . . 3 38 21 12 3 3 . 2 5 5 2 7 15 4 7 . 24 11 5 24 10 1 32 6 Power 45 | 1 . . . 1 6 3 3 2 . . 1 . . . . 4 . . . 5 3 1 4 2 . 9 . Engine 16 | 1 . . . 1 5 3 3 2 . . . . . . . 1 . . . . . . . . . . . Core 17 | . . . . . 1 . . . . . 1 . . . . 2 . . . 3 3 1 3 2 . 1 . Reactor 12 | . . . . . . . . . . . . . . . . 1 . . . 2 . . 1 . . 8 . Propulsion 55 | 2 . . . 1 13 3 2 . . . . 2 . . . 5 . . . 4 3 1 6 . . 11 2 Treads 3 | . . . . . . . . . . . . . . . . . . . . . . . . . . 1 2 Leg 40 | 2 . . . 1 10 3 2 . . . . 2 . . . 5 . . . 2 . . 3 . . 10 . Wheel 2 | . . . . . . . . . . . . . . . . . . . . . . . 2 . . . . Hover 7 | . . . . . . . . . . . . . . . . . . . . 2 3 1 1 . . . . Flight 3 | . . . . . 3 . . . . . . . . . . . . . . . . . . . . . . Utility 93 | 2 3 . . 1 14 11 4 1 3 . 1 3 3 . 5 6 3 1 . 8 3 3 9 3 . 5 1 Device 52 | . 2 . . 1 5 3 3 1 2 . 1 1 . . 2 5 2 1 . 5 2 2 8 2 . 3 1 Storage 6 | 1 . . . . . . . . 1 . . . . . 1 . . . . 1 . . . 1 . 1 . Processor 7 | . 1 . . . 1 2 1 . . . . . . . 1 1 . . . . . . . . . . . Hackware 2 | . . . . . 1 . . . . . . . . . . . . . . . . . 1 . . . . Protection 26 | 1 . . . . 7 6 . . . . . 2 3 . 1 . 1 . . 2 1 1 . . . 1 . Artifact . | . . . . . . . . . . . . . . . . . . . . . . . . . . . . Weapon 57 | 2 . . . . 5 4 3 . . . . . 2 2 2 . 1 6 . 7 2 . 5 5 1 7 3 Energy Gun 41 | 2 . . . . 5 4 3 . . . . . 2 2 1 . . 4 . 6 2 . 5 3 1 1 . Energy Cannon 1 | . . . . . . . . . . . . . . . . . . . . . . . . . . 1 . Ballistic Gun 1 | . . . . . . . . . . . . . . . . . . . . . . . . . . 1 . Ballistic Cannon 4 | . . . . . . . . . . . . . . . . . . . . . . . . . . 1 3 Launcher 7 | . . . . . . . . . . . . . . . 1 . 1 1 . . . . . 2 . 2 . Special Weapon 2 | . . . . . . . . . . . . . . . . . . 1 . 1 . . . . . . . Impact Weapon 1 | . . . . . . . . . . . . . . . . . . . . . . . . . . 1 . Slashing Weapon . | . . . . . . . . . . . . . . . . . . . . . . . . . . . . Piercing Weapon . | . . . . . . . . . . . . . . . . . . . . . . . . . . . . Special Melee Weapon . | . . . . . . . . . . . . . . . . . . . . . . . . . . . . Unidentified Prototypes 17 | . . . . . 2 3 1 . . . . . . 1 . 6 . 1 . . 1 . . . . 2 . Parts Lost 82 | . . . 1 1 2 2 . 1 . . . 1 . . . 5 . . . 21 1 . 18 5 . 24 . Power 15 | . . . . 1 . 1 . . . . . . . . . . . . . 3 . . 3 1 . 6 . Propulsion 23 | . . . . . . . . . . . . . . . . 3 . . . 5 1 . 8 . . 6 . Utility 26 | . . . 1 . . . . 1 . . . 1 . . . 2 . . . 8 . . 3 3 . 7 . Weapon 18 | . . . . . 2 1 . . . . . . . . . . . . . 5 . . 4 1 . 5 . Highest Loss Streak 13 | . . . 1 1 1 1 . 1 . . . 1 . . . 3 . . . 10 1 . 6 5 . 13 . To Critical Strikes 1 | . . . . . . . . . . . . . . . . . . . . . . . . . . 1 . Average Slot Usage (%) 89 | . 99 100 98 98 99 99 99 99 99 100 100 92 97 100 94 92 94 93 94 77 67 76 76 40 47 70 36 Engine 5 | . 12 12 12 10 11 12 11 12 12 12 8 5 5 5 5 4 . . . . . . . . . . . Core 3 | . . . . . 4 1 . . . . 3 5 5 5 5 5 5 5 5 4 8 8 4 2 5 1 . Reactor 1 | . . . . . . . . . . . . . . . . . 5 5 5 4 . . 1 . . 10 . Leg 20 | . 25 25 25 25 32 28 25 25 25 25 25 22 22 22 22 21 22 22 22 14 . . 5 . . 18 9 Device 22 | . 11 12 10 12 10 21 27 25 30 31 31 26 27 27 26 26 27 26 27 24 20 25 30 16 20 14 6 Storage 6 | . 12 12 12 12 8 7 6 6 6 6 6 5 5 5 7 11 5 5 5 4 . . . . . 3 4 Processor 8 | . 8 12 12 12 5 2 8 12 12 12 12 11 11 11 8 5 11 11 11 11 10 10 10 10 10 7 4 Protection 4 | . 3 . . . 7 11 6 5 . . . 4 8 11 5 4 4 5 5 2 4 3 2 . . 2 . Energy Gun 10 | . 25 25 25 25 15 13 12 12 12 12 12 11 10 11 11 11 8 5 5 7 7 10 7 1 7 3 . Naked Turns . | . . . . . . . . . . . . . . . . . . . . . . . . . . . . Heaviest Build 87 | 18 19 18 18 18 36 50 54 54 49 49 60 80 75 75 75 75 64 67 67 67 43 43 56 19 19 87 53 Greatest Support 131 | 20 20 20 20 23 51 71 78 78 78 78 78 78 77 77 77 85 85 85 85 95 43 43 65 16 16 131 75 Greatest Overweight (x) 6 | . . . . . 6 . . . . . . 1 . . . 1 . . . 1 1 . 2 1 1 6 . Average Overweight (x) . | . . . . . . . . . . . . . . . . . . . . . . . . . . . . Largest Inventory Capacity 15 | 10 10 10 10 10 10 10 10 10 10 10 10 10 10 10 10 10 10 10 10 15 5 5 5 10 5 10 10 Average Capacity 9 | 8 10 10 10 10 10 10 10 10 10 10 10 10 10 10 10 10 10 10 10 12 5 5 5 5 5 9 10 Most Carried 12 | 4 10 10 10 10 10 10 10 10 10 10 10 10 10 10 10 10 8 10 10 12 5 5 5 5 5 7 7 Average Carried 8 | 2 7 10 10 8 9 9 9 10 9 10 10 10 9 9 9 9 7 8 10 8 3 3 4 4 5 5 4 Final Capacity 10 | 10 10 10 10 10 10 10 10 10 10 10 10 10 10 10 10 10 10 10 10 5 5 5 5 5 5 10 10 Final Carried 10 | 4 10 10 10 8 10 10 10 10 10 10 10 10 10 10 10 7 8 10 10 5 3 3 5 5 5 4 7 Class Distribution -------------------- 58% | Hacker-Mutant 33% | Scavenger-Mutant 4% | Generator-Mutant Dominant Class ---------------- Hacker-Mutant | -10/Materials Hacker-Mutant | -10/Mines Hacker-Mutant | -10/Exiles Hacker-Mutant | -9/Mines Hacker-Mutant | -8/Materials Hacker-Mutant | -7/Factory Hacker-Mutant | -6/Factory Hacker-Mutant | -6/Lower Caves Hacker-Mutant | -6/Lower Caves Hacker-Mutant | -6/Data Miner Hacker-Mutant | -5/Proximity Caves Hacker-Mutant | -5/Factory Scavenger-Mutant | -5/Waste Scavenger-Mutant | -5/Factory Scavenger-Mutant | -5/Garrison Hacker-Mutant | -5/Factory Scavenger-Mutant | -5/Upper Caves Scavenger-Mutant | -5/Upper Caves Scavenger-Mutant | -5/Warlord Scavenger-Mutant | -4/Proximity Caves Scavenger-Mutant | -4/Factory Scavenger-Mutant | -4/Waste Scavenger-Mutant | -4/Factory Hacker-Mutant | -4/Upper Caves Hacker-Mutant | -4/Upper Caves Generator-Mutant | -3/Research Hacker-Tank | -2/Research Resources | -11 -10 -10 -10 -9 -8 -7 -6 -6 -6 -6 -5 -5 -5 -5 -5 -5 -5 -5 -5 -4 -4 -4 -4 -4 -4 -3 -2 ----------- Run | Scr Mat Min Exi Min Mat Fac Fac Low Low Dat Pro Fac Was Fac Gar Fac Upp Upp War Pro Fac Was Fac Upp Upp Res Res Matter Collected 3262 | 215 99 . . 27 398 215 140 30 30 . 20 40 10 . 188 154 65 16 8 276 119 20 191 144 24 789 44 Remotely . | . . . . . . . . . . . . . . . . . . . . . . . . . . . . Salvage Created 9172 | . 228 . . 15 912 1141 510 448 . . 216 196 . . 405 979 223 155 . 1068 303 . 619 90 . 1407 257 Parts 325 | . 12 . . 2 51 35 21 15 . . 8 5 . . 5 42 6 4 . 21 5 . 21 8 . 61 3 Haulers Intercepted 3 | . . . . . 1 1 . . . . . . . . . 1 . . . . . . . . . . . Recyclers Shooed 3 | . . . . . . 1 . . . . . . . . . . . . . . . . . . . 2 . Parts Field Recycled . | . . . . . . . . . . . . . . . . . . . . . . . . . . . . Retrieved Matter . | . . . . . . . . . . . . . . . . . . . . . . . . . . . . Parts Self-Destructed . | . . . . . . . . . . . . . . . . . . . . . . . . . . . . Prevented . | . . . . . . . . . . . . . . . . . . . . . . . . . . . . Kills | -11 -10 -10 -10 -9 -8 -7 -6 -6 -6 -6 -5 -5 -5 -5 -5 -5 -5 -5 -5 -4 -4 -4 -4 -4 -4 -3 -2 ------- Run | Scr Mat Min Exi Min Mat Fac Fac Low Low Dat Pro Fac Was Fac Gar Fac Upp Upp War Pro Fac Was Fac Upp Upp Res Res Combat Hostiles Destroyed 172 | . 8 . . 1 18 15 9 9 . . 3 3 . . 8 21 5 4 . 20 4 . 10 5 . 25 4 Guns 129 | . 8 . . 1 16 12 6 8 . . 2 3 . . 7 19 5 4 . 14 3 . 8 . . 13 . Cannons 13 | . . . . . . . . . . . . . . . . . . . . . . . . . . 9 4 AOE 6 | . . . . . . . . . . . . . . . . . . . . . . . . 5 . 1 . Classes Destroyed 19 | . 4 . . . 6 3 . . . . 1 . . . 1 2 . . . 1 . . 1 . . . . Worker 4 | . 1 . . . . 1 . . . . . . . . . 2 . . . . . . . . . . . Builder 5 | . . . . . 2 . 1 . . . . . . . . 1 . . . . . . . . . 1 . Hauler 3 | . . . . . 1 1 . . . . . . . . . 1 . . . . . . . . . . . Recycler 3 | . . . . . . 3 . . . . . . . . . . . . . . . . . . . . . Operator 3 | . . . . . 1 . . . . . . . . . . 1 . . . . . . . . . 1 . Watcher 13 | . 1 . . . 3 4 2 . . . . . . . . 2 . . . . . . 1 . . . . Swarmer 35 | . 6 . . 1 5 . 3 4 . . . . . . 1 3 2 1 . . . . 3 3 . 3 . Saboteur 1 | . . . . . . . . . . . . . . . . . . . . 1 . . . . . . . Grunt 55 | . 2 . . . 6 6 3 3 . . 1 2 . . 4 2 2 1 . 6 3 . 4 . . 7 3 Brawler 3 | . . . . . 1 1 . . . . 1 . . . . . . . . . . . . . . . . Duelist 5 | . . . . . 1 1 . . . . . . . . . 1 . . . 2 . . . . . . . Protector 1 | . . . . . . . . . . . . . . . . 1 . . . . . . . . . . . Sentry 28 | . . . . . 5 4 1 2 . . . 1 . . 3 4 1 1 . 2 1 . . . . 2 1 Specialist 1 | . . . . . . . . . . . . . . . . 1 . . . . . . . . . . . Hunter 15 | . . . . . . 1 1 . . . . . . . . 4 . 1 . 4 . . . . . 4 . Programmer 24 | . . . . . . 2 1 . . . . . . . . 4 . . . 4 . . 2 2 . 9 . Heavy 1 | . . . . . . . . . . . . . . . . . . . . . . . 1 . . . . Behemoth 3 | . . . . . . . . . . . 1 . . . . 1 . . . 1 . . . . . . . Surgeon 1 | . . . . . . . . . . . . . . . 1 . . . . . . . . . . . . Wasp 1 | . . . . . . . . . . . . . . . 1 . . . . . . . . . . . . Best Kill Streak 8 | . 3 . . 1 3 7 4 5 . . 2 1 . . 3 5 2 3 . 6 2 . 3 3 . 8 3 Combat Bots Only 7 | . 3 . . 1 3 6 4 5 . . 2 1 . . 3 3 2 3 . 6 2 . 3 3 . 7 3 Max Kills in Single Turn 2 | . 2 . . 1 1 1 1 1 . . 1 1 . . 2 1 1 1 . 1 1 . 1 2 . 1 1 Gunslinging 1 | . 1 . . . . . . . . . . . . . . . . . . . . . . . . . . Exploded 2 | . . . . . . . . . . . . . . . . . . . . . . . . 2 . 1 . Melee . | . . . . . . . . . . . . . . . . . . . . . . . . . . . . Uniques/NPCs Destroyed . | . . . . . . . . . . . . . . . . . . . . . . . . . . . . Combat | -11 -10 -10 -10 -9 -8 -7 -6 -6 -6 -6 -5 -5 -5 -5 -5 -5 -5 -5 -5 -4 -4 -4 -4 -4 -4 -3 -2 -------- Run | Scr Mat Min Exi Min Mat Fac Fac Low Low Dat Pro Fac Was Fac Gar Fac Upp Upp War Pro Fac Was Fac Upp Upp Res Res Damage Taken 14004 | . 86 . 194 214 639 546 258 428 . . 95 70 . . 353 1102 84 123 224 2403 214 . 1964 247 . 4005 755 Core 2110 | . 3 . 29 53 67 30 24 63 . . . 7 . . 14 146 11 11 38 406 14 . 417 118 . 592 67 Absorbed by Shields 100 | . . . . . . . . . . . . . . . . . . . 86 14 . . . . . . . Redirected to Shielding 116 | . 1 . . . . 15 . . . . . . . . . . . . . . . . . . . 100 . Core Remaining (%) 72 | 100 . . . 66 87 95 . . . . 89 . . . . . . . . 36 . . . . 52 54 . Volleys Fired 738 | . 18 . . 3 93 57 35 21 . . 7 12 . . 36 108 12 14 . 95 26 . 64 5 . 120 12 Largest 3 | . 2 . . 2 2 2 2 2 . . 2 2 . . 2 2 1 1 . 2 2 . 3 1 . 2 3 Hottest 219 | . 80 . . 80 130 145 150 150 . . 150 150 . . 200 200 100 100 . 161 126 . 219 49 . 182 195 Shots Fired 1113 | . 36 . 1 6 186 105 66 42 . . 14 24 . . 37 111 12 14 . 130 47 . 100 6 . 145 31 Gun 1035 | . 36 . 1 6 186 105 66 42 . . 14 24 . . 36 111 11 14 . 130 47 . 100 . . 106 . Cannon 63 | . . . . . . . . . . . . . . . . . . . . . . . . . . 32 31 Launcher 15 | . . . . . . . . . . . . . . . 1 . 1 . . . . . . 6 . 7 . Special . | . . . . . . . . . . . . . . . . . . . . . . . . . . . . Kinetic 87 | . . . . . . . . . . . . . . . . . . . . . . . . . . 56 31 Thermal 999 | . 36 . 1 6 186 105 66 42 . . 14 24 . . 36 111 11 14 . 128 47 . 97 . . 75 . Explosive 13 | . . . . . . . . . . . . . . . 1 . 1 . . . . . . 6 . 5 . Electromagnetic 14 | . . . . . . . . . . . . . . . . . . . . 2 . . 3 . . 9 . Robot Hit Streak 61 | . 16 . . 4 24 19 19 10 . . 16 19 . . 22 35 21 22 . 34 34 . 36 12 . 61 15 Robot Miss Streak 4 | . 1 . 1 2 3 2 2 1 . . . 1 . . 3 4 1 1 . 3 1 . 1 . . 2 1 Penetration Max . | . . . . . . . . . . . . . . . . . . . . . . . . . . . . Secondary Targets 6 | . 2 . . . 1 . . 1 . . . . . . . . . . . 2 . . . . . . . Max Gunslinging Chain 1 | . 1 . . . 1 . . 1 . . . . . . . . . . . 1 . . . . . . . Capacitor 221 | . . . . . . . . . . . . . . . 34 105 11 14 . 57 . . . . . . . Shots Hit Robots 967 | . 31 . . 4 147 88 59 33 . . 13 22 . . 29 111 11 13 . 124 43 . 86 2 . 126 25 Core Hits 551 | . 13 . . 2 45 61 23 14 . . 6 7 . . 29 96 15 12 . 94 16 . 28 8 . 71 11 Critical Kills . | . . . . . . . . . . . . . . . . . . . . . . . . . . . . Critical Parts Destroyed . | . . . . . . . . . . . . . . . . . . . . . . . . . . . . Critical Strikes 38 | . . . . . 5 4 6 4 . . 1 2 . . . . . . . 2 1 . 5 . . 5 3 Burn 32 | . . . . . 5 4 6 4 . . 1 2 . . . . . . . 2 1 . 5 . . 2 . Blast 6 | . . . . . . . . . . . . . . . . . . . . . . . . . . 3 3 Melee Attacks . | . . . . . . . . . . . . . . . . . . . . . . . . . . . . Impact . | . . . . . . . . . . . . . . . . . . . . . . . . . . . . Slashing . | . . . . . . . . . . . . . . . . . . . . . . . . . . . . Piercing . | . . . . . . . . . . . . . . . . . . . . . . . . . . . . Sneak Attacks . | . . . . . . . . . . . . . . . . . . . . . . . . . . . . Combat Hostiles . | . . . . . . . . . . . . . . . . . . . . . . . . . . . . Follow-up Attacks . | . . . . . . . . . . . . . . . . . . . . . . . . . . . . Damage Inflicted 26764 | . 342 . . 45 2196 1868 1231 903 . . 350 566 . . 1851 4245 425 507 . 4055 733 . 1768 562 . 4253 864 Guns 22414 | . 342 . . 45 2196 1868 1231 903 . . 350 566 . . 1142 4213 425 507 . 4045 733 . 1768 . . 2080 . Cannons 2124 | . . . . . . . . . . . . . . . . . . . . . . . . . . 1260 864 Explosions 2184 | . . . . . . . . . . . . . . . 709 . . . . . . . . 562 . 913 . Melee . | . . . . . . . . . . . . . . . . . . . . . . . . . . . . Ramming 42 | . . . . . . . . . . . . . . . . 32 . . . 10 . . . . . . . Kinetic 2461 | . . . . . . . . . . . . . . . . . . . . . . . . . . 1597 864 Thermal 21830 | . 342 . . 45 2196 1868 1231 903 . . 350 566 . . 1142 4213 425 507 . 4001 733 . 1754 . . 1554 . Explosive 2069 | . . . . . . . . . . . . . . . 709 . . . . . . . . 562 . 798 . Electromagnetic 362 | . . . . . . . . . . . . . . . . . . . . 44 . . 14 . . 304 . Impact . | . . . . . . . . . . . . . . . . . . . . . . . . . . . . Slashing . | . . . . . . . . . . . . . . . . . . . . . . . . . . . . Piercing . | . . . . . . . . . . . . . . . . . . . . . . . . . . . . Highest Corruption 13 | . 2 2 3 3 2 . . . . . . . . . . 2 2 2 2 1 . 6 13 13 13 12 . Average Corruption 3 | . 1 2 2 3 1 . . . . . . . . . . 1 2 2 2 1 . 6 7 13 13 10 . Corruption Purged . | . . . . . . . . . . . . . . . . . . . . . . . . . . . . Corruption Blocked . | . . . . . . . . . . . . . . . . . . . . . . . . . . . . Effects 113 | . 3 1 1 5 14 . . . . . . . . . . 2 7 7 5 7 . 1 23 14 10 13 . Message Errors 27 | . . . . . 2 . . . . . . . . . . . 4 2 4 3 . 1 5 2 1 3 . Matter Fused 25 | . 2 . . 1 5 . . . . . . . . . . 2 . 2 . 1 . . 1 4 4 3 . Heat Flow Errors 15 | . . . . 2 . . . . . . . . . . . . 2 1 . . . . 3 4 3 . . Energy Discharges 13 | . 1 . . 1 3 . . . . . . . . . . . . . . . . . 5 2 1 . . Parts Rejected 3 | . . . . . . . . . . . . . . . . . . 1 . . . . 1 . . 1 . Data Loss (minor) 14 | . . . . 1 . . . . . . . . . . . . 1 . . 2 . . 5 1 . 4 . Data Loss (major) 8 | . . 1 . . 3 . . . . . . . . . . . . 1 1 1 . . . . 1 . . Misfires 5 | . . . 1 . 1 . . . . . . . . . . . . . . . . . 1 1 . 1 . Alerts 1 | . . . . . . . . . . . . . . . . . . . . . . . 1 . . . . Weapon Failures 2 | . . . . . . . . . . . . . . . . . . . . . . . 1 . . 1 . Overload Shots . | . . . . . . . . . . . . . . . . . . . . . . . . . . . . Overflow Damage 149 | . . . . . . . . . . . . . . . 43 17 . . . . . . . 3 . 86 . Projectiles 42 | . . . . . . . . . . . . . . . . . . . . . . . . . . 42 . Explosions 90 | . . . . . . . . . . . . . . . 43 . . . . . . . . 3 . 44 . Melee 17 | . . . . . . . . . . . . . . . . 17 . . . . . . . . . . . Knockbacks 15 | . . . . . . . . . . . . . . . . . . . . . . . . . . 10 5 Impact . | . . . . . . . . . . . . . . . . . . . . . . . . . . . . Kinetic 13 | . . . . . . . . . . . . . . . . . . . . . . . . . . 8 5 Secondary 2 | . . . . . . . . . . . . . . . . . . . . . . . . . . 2 . Self-Inflicted Damage 20 | . . . . . . . . . . . . . . . 8 . . . . . . . . . . 12 . Shots 3 | . . . . . . . . . . . . . . . 1 . . . . . . . . . . 2 . Rammed . | . . . . . . . . . . . . . . . . . . . . . . . . . . . . Targets Rammed 3 | . . . . . . . . . . . . . . . . 1 . . . 2 . . . . . . . Kicked 3 | . . . . . . . . . . . . . . . . 1 . . . 2 . . . . . . . Crushed . | . . . . . . . . . . . . . . . . . . . . . . . . . . . . Highest Temperature 426 | . 192 . 4 225 285 323 87 339 . . 58 202 . . 132 201 178 220 426 258 . . 219 209 152 382 403 Average Temperature 93 | . 62 . 3 104 61 83 31 105 . . 24 85 . . 46 58 78 114 206 82 . . 104 87 74 154 204 Received Heat Transfer 3331 | . 48 . . . 423 279 81 210 . . 42 54 . . 108 219 39 45 . 602 63 . 139 9 . 727 243 Effects 9 | . . . . . . 1 . . . . . . . . . . . . 3 . . . . . . 4 1 Shutdowns 3 | . . . . . . 1 . . . . . . . . . . . . 2 . . . . . . . . Energy Bleed 1 | . . . . . . . . . . . . . . . . . . . . . . . . . . 1 . Interference 2 | . . . . . . . . . . . . . . . . . . . . . . . . . . 2 . Matter Decay 1 | . . . . . . . . . . . . . . . . . . . . . . . . . . . 1 Short Circuit 1 | . . . . . . . . . . . . . . . . . . . . . . . . . . 1 . Damage (minor) 1 | . . . . . . . . . . . . . . . . . . . 1 . . . . . . . . Siege Activations . | . . . . . . . . . . . . . . . . . . . . . . . . . . . . Robots Corrupted 1 | . . . . . . . . . . . . . . . . . . . . . . . . . . 1 . Combat Hostiles 1 | . . . . . . . . . . . . . . . . . . . . . . . . . . 1 . Parts Fried 4 | . 2 . . . . . . . . . . . . . . . . . . . . . . . . 2 . Impact Corruptions 1 | . . . . . . . . . . . . . . . . 1 . . . . . . . . . . . Robots Melted 24 | . . . . . 2 3 3 1 . . 1 . . . 1 2 . . . 6 1 . 3 . . 1 . Combat Hostiles 23 | . . . . . 2 3 3 1 . . 1 . . . 1 2 . . . 6 1 . 2 . . 1 . Parts Melted 109 | . 1 . . . 13 13 14 2 . . 1 4 . . 6 17 2 2 . 15 9 . 8 . . 2 . Heat Transferred 44013 | . 775 . . 100 5571 4546 3147 2150 . . 750 1300 . . 1875 6457 700 825 . 7308 1665 . 4143 . . 2701 . Parts Sabotaged 3 | . . . . . . . . . . . . . . . . 3 . . . . . . . . . . . Parts Stolen . | . . . . . . . . . . . . . . . . . . . . . . . . . . . . Parts Stripped . | . . . . . . . . . . . . . . . . . . . . . . . . . . . . Power Chain Reactions . | . . . . . . . . . . . . . . . . . . . . . . . . . . . . Missiles Intercepted . | . . . . . . . . . . . . . . . . . . . . . . . . . . . . Alert | -11 -10 -10 -10 -9 -8 -7 -6 -6 -6 -6 -5 -5 -5 -5 -5 -5 -5 -5 -5 -4 -4 -4 -4 -4 -4 -3 -2 ------- Run | Scr Mat Min Exi Min Mat Fac Fac Low Low Dat Pro Fac Was Fac Gar Fac Upp Upp War Pro Fac Was Fac Upp Upp Res Res Peak Influence 756 | . 215 19 . 103 250 325 272 . . . . 59 8 . 756 395 . . . . 145 49 270 . . 275 231 Initial 294 | . . 19 . . 14 19 7 . . . . . 8 . . 294 . . . . . 34 26 . . 27 94 Average 140 | . 75 19 . 59 74 81 87 . . . . 25 7 . 531 153 . . . . 44 40 75 . . 117 130 Maximum Alert Level 3 | . 1 . . . 1 1 1 . . . . . . . 3 1 . . . . . . 1 . . 1 1 Low Security (%) 77 | 100 88 100 . 100 95 91 88 . . . . 100 100 100 13 60 . . . . 100 100 88 . . 77 83 Level 1 15 | . 11 . . . 4 8 11 . . . . . . . 22 39 . . . . . . 11 . . 22 16 Level 2 3 | . . . . . . . . . . . . . . . 28 . . . . . . . . . . . . Level 3 4 | . . . . . . . . . . . . . . . 35 . . . . . . . . . . . . Level 4 . | . . . . . . . . . . . . . . . . . . . . . . . . . . . . Level 5 . | . . . . . . . . . . . . . . . . . . . . . . . . . . . . High Security . | . . . . . . . . . . . . . . . . . . . . . . . . . . . . Max Security . | . . . . . . . . . . . . . . . . . . . . . . . . . . . . Squads Dispatched 38 | . 1 . . . 2 4 2 . . . . 2 . . . 7 . . . 1 1 . 5 . . 10 3 Investigation 9 | . 1 . . . 2 1 1 . . . . 1 . . . 1 . . . . . . 1 . . . 1 Extermination 10 | . . . . . . 2 1 . . . . . . . . 2 . . . . . . 2 . . 2 1 Reinforcement 8 | . . . . . . 1 . . . . . 1 . . . . . . . . 1 . 2 . . 2 1 Assault 1 | . . . . . . . . . . . . . . . . . . . . 1 . . . . . . . Garrison 10 | . . . . . . . . . . . . . . . . 4 . . . . . . . . . 6 . Intercept . | . . . . . . . . . . . . . . . . . . . . . . . . . . . . Searches Triggered . | . . . . . . . . . . . . . . . . . . . . . . . . . . . . Construction Impeded 1 | . . . . . . . . . . . . . . . . . . . . . . . . . . 1 . Haulers Reinforced 1 | . . . . . . . . . . . . 1 . . . . . . . . . . . . . . . Active Scanning Responses . | . . . . . . . . . . . . . . . . . . . . . . . . . . . . Cargo Convoy Interrupts 1 | . . . . . . . . . . . . . . . . 1 . . . . . . . . . . . Stealth | -11 -10 -10 -10 -9 -8 -7 -6 -6 -6 -6 -5 -5 -5 -5 -5 -5 -5 -5 -5 -4 -4 -4 -4 -4 -4 -3 -2 --------- Run | Scr Mat Min Exi Min Mat Fac Fac Low Low Dat Pro Fac Was Fac Gar Fac Upp Upp War Pro Fac Was Fac Upp Upp Res Res Distress Signals 11 | . 1 . . . 3 1 2 . . . . 1 . . . 1 . . . . 1 . 1 . . . . Communications Jammed . | . . . . . . . . . . . . . . . . . . . . . . . . . . . . Distress Signals . | . . . . . . . . . . . . . . . . . . . . . . . . . . . . Times Spotted 287 | . 11 . 8 13 30 21 11 10 . . 3 6 . . 21 30 6 5 2 28 7 5 25 5 . 31 9 Peak Tracking Total 9 | . 5 . 9 9 4 5 5 5 . . 2 4 . . 5 7 3 4 2 6 3 5 9 4 . 7 6 Tactical Retreats 17 | . 1 . . 2 . . 1 . . . . 1 . . . 2 1 1 . 2 1 . 2 1 . 2 . Traps | -11 -10 -10 -10 -9 -8 -7 -6 -6 -6 -6 -5 -5 -5 -5 -5 -5 -5 -5 -5 -4 -4 -4 -4 -4 -4 -3 -2 ------- Run | Scr Mat Min Exi Min Mat Fac Fac Low Low Dat Pro Fac Was Fac Gar Fac Upp Upp War Pro Fac Was Fac Upp Upp Res Res Traps Triggered 18 | . 2 . . . 3 2 . . . . . 1 . . 2 1 . . 3 . 1 . 3 . . . . Indirectly . | . . . . . . . . . . . . . . . . . . . . . . . . . . . . Trap Hack Attempts . | . . . . . . . . . . . . . . . . . . . . . . . . . . . . Triggered . | . . . . . . . . . . . . . . . . . . . . . . . . . . . . Disarmed . | . . . . . . . . . . . . . . . . . . . . . . . . . . . . Reprogrammed 10 | . 4 . . . . . . . . . . . . . . 6 . . . . . . . . . . . Reused 2 | . 1 . . . . . . . . . . . . . . 1 . . . . . . . . . . . Traps Extracted . | . . . . . . . . . . . . . . . . . . . . . . . . . . . . Installed . | . . . . . . . . . . . . . . . . . . . . . . . . . . . . Triggered 3 | . 1 . . . . . . . . . 1 . . . . 1 . . . . . . . . . . . Machines | -11 -10 -10 -10 -9 -8 -7 -6 -6 -6 -6 -5 -5 -5 -5 -5 -5 -5 -5 -5 -4 -4 -4 -4 -4 -4 -3 -2 ---------- Run | Scr Mat Min Exi Min Mat Fac Fac Low Low Dat Pro Fac Was Fac Gar Fac Upp Upp War Pro Fac Was Fac Upp Upp Res Res Machines Disabled 10 | . . . . . . . . . . . . 1 . . 5 . 1 1 . . . . . . . 1 1 Max in Single Turn 2 | . . . . . . . . . . . . 1 . . 2 . 1 1 . . . . . . . 1 1 Garrison Relay 4 | . . . . . . . . . . . . . . . 4 . . . . . . . . . . . . Phase Generator 1 | . . . . . . . . . . . . . . . 1 . . . . . . . . . . . . Machines Sabotaged . | . . . . . . . . . . . . . . . . . . . . . . . . . . . . Garrisons Compromised 1 | . . . . . . . . . . . . . . . . 1 . . . . . . . . . . . Overloaded Fab Kills . | . . . . . . . . . . . . . . . . . . . . . . . . . . . . Hacking | -11 -10 -10 -10 -9 -8 -7 -6 -6 -6 -6 -5 -5 -5 -5 -5 -5 -5 -5 -5 -4 -4 -4 -4 -4 -4 -3 -2 --------- Run | Scr Mat Min Exi Min Mat Fac Fac Low Low Dat Pro Fac Was Fac Gar Fac Upp Upp War Pro Fac Was Fac Upp Upp Res Res Machines Accessed 33 | . 4 . . . 6 6 1 . 1 3 . . . 1 . 7 . . . . 1 . 1 . . . 2 Terminals 28 | . 4 . . . 6 6 1 . . . . . . . . 7 . . . . 1 . 1 . . . 2 Fabricators . | . . . . . . . . . . . . . . . . . . . . . . . . . . . . Repair Stations . | . . . . . . . . . . . . . . . . . . . . . . . . . . . . Recycling Units . | . . . . . . . . . . . . . . . . . . . . . . . . . . . . Scanalyzers . | . . . . . . . . . . . . . . . . . . . . . . . . . . . . Garrison Access 1 | . . . . . . . . . . . . . . 1 . . . . . . . . . . . . . Total Hacks 95 | . 9 . . . 17 14 2 . 1 20 . . . 3 . 17 . . . . 3 . 3 . . . 6 Successful 61 | . 5 . . . 6 11 1 . 1 20 . . . 1 . 11 . . . . 1 . 3 . . . 1 Failed 34 | . 4 . . . 11 3 1 . . . . . . 2 . 6 . . . . 2 . . . . . 5 Catastrophic 2 | . . . . . . . 1 . . . . . . . . 1 . . . . . . . . . . . Database Lockouts . | . . . . . . . . . . . . . . . . . . . . . . . . . . . . Manual 4 | . . . . . 3 . . . . . . . . . . . . 1 . . . . . . . . . Terminals 71 | . 9 . . . 17 14 2 . . . . . . . . 17 . . . . 3 . 3 . . . 6 Fabricators . | . . . . . . . . . . . . . . . . . . . . . . . . . . . . Repair Stations . | . . . . . . . . . . . . . . . . . . . . . . . . . . . . Recycling Units . | . . . . . . . . . . . . . . . . . . . . . . . . . . . . Scanalyzers . | . . . . . . . . . . . . . . . . . . . . . . . . . . . . Garrison Access 3 | . . . . . . . . . . . . . . 3 . . . . . . . . . . . . . Terminal Hacks 60 | . 5 . . . 6 11 1 . 1 20 . . . . . 11 . . . . 1 . 3 . . . 1 Record 7 | . . . . . . . . . . 4 . . . . . 1 . . . . . . 1 . . . 1 Part Schematic 9 | . . . . . . . . . . 9 . . . . . . . . . . . . . . . . . Robot Schematic 4 | . . . . . . . . . . 4 . . . . . . . . . . . . . . . . . Robot Analysis 3 | . . . . . . . 1 . . . . . . . . 2 . . . . . . . . . . . Prototype ID Bank 14 | . 1 . . . 3 4 . . . 3 . . . . . 2 . . . . 1 . . . . . . Open Door 1 | . . . . . . . . . 1 . . . . . . . . . . . . . . . . . . Open DSF 1 | . . . . . . . . . . . . . . . . 1 . . . . . . . . . . . Level Access Points 4 | . 1 . . . 1 1 . . . . . . . . . 1 . . . . . . . . . . . Branch Access Points 2 | . . . . . 1 1 . . . . . . . . . . . . . . . . . . . . . Emergency Access Points 1 | . . . . . 1 . . . . . . . . . . . . . . . . . . . . . . Machine Index 1 | . . . . . . 1 . . . . . . . . . . . . . . . . . . . . . Unreport Threat 1 | . . . . . . . . . . . . . . . . 1 . . . . . . . . . . . Locate Traps 2 | . 1 . . . . . . . . . . . . . . . . . . . . . 1 . . . . Reprogram Traps 2 | . 1 . . . . . . . . . . . . . . 1 . . . . . . . . . . . Recall Investigation 1 | . 1 . . . . . . . . . . . . . . . . . . . . . . . . . . Hauler Manifests 1 | . . . . . . 1 . . . . . . . . . . . . . . . . . . . . . Registered Prototypes 1 | . . . . . . . . . . . . . . . . 1 . . . . . . . . . . . Zone Layout 5 | . . . . . . 3 . . . . . . . . . 1 . . . . . . 1 . . . . Fabricator Hacks . | . . . . . . . . . . . . . . . . . . . . . . . . . . . . Repair Station Hacks . | . . . . . . . . . . . . . . . . . . . . . . . . . . . . Recycling Unit Hacks . | . . . . . . . . . . . . . . . . . . . . . . . . . . . . Scanalyzer . | . . . . . . . . . . . . . . . . . . . . . . . . . . . . Garrison Access Hacks 1 | . . . . . . . . . . . . . . 1 . . . . . . . . . . . . . Unlock Access 1 | . . . . . . . . . . . . . . 1 . . . . . . . . . . . . . Unauthorized Hacks . | . . . . . . . . . . . . . . . . . . . . . . . . . . . . Terminals . | . . . . . . . . . . . . . . . . . . . . . . . . . . . . Fabricators . | . . . . . . . . . . . . . . . . . . . . . . . . . . . . Repair Stations . | . . . . . . . . . . . . . . . . . . . . . . . . . . . . Recycling Units . | . . . . . . . . . . . . . . . . . . . . . . . . . . . . Scanalyzers . | . . . . . . . . . . . . . . . . . . . . . . . . . . . . Garrison Access . | . . . . . . . . . . . . . . . . . . . . . . . . . . . . Data Cores Recovered 2 | . . . . . 1 . . . . . . . . . . 1 . . . . . . . . . . . Used 1 | . . . . . 1 . . . . . . . . . . . . . . . . . . . . . . Hacking Detections 24 | . 3 . . . 6 4 1 . . . . . . 1 . 6 . . . . . . 1 . . . 2 Full Trace Events 7 | . 1 . . . 2 . 1 . . . . . . . . 1 . . . . . . 1 . . . 1 Feedback Events 1 | . . . . . 1 . . . . . . . . . . . . . . . . . . . . . . Corruption 1 | . . . . . 1 . . . . . . . . . . . . . . . . . . . . . . Feedback Blocked . | . . . . . . . . . . . . . . . . . . . . . . . . . . . . Robot Schematics Acquired 4 | . . . . . . . . . . 4 . . . . . . . . . . . . . . . . . Robots Built . | . . . . . . . . . . . . . . . . . . . . . . . . . . . . Authchips . | . . . . . . . . . . . . . . . . . . . . . . . . . . . . Time . | . . . . . . . . . . . . . . . . . . . . . . . . . . . . Total Robot Build Rating . | . . . . . . . . . . . . . . . . . . . . . . . . . . . . Part Schematics Acquired 9 | . . . . . . . . . . 9 . . . . . . . . . . . . . . . . . Parts Built . | . . . . . . . . . . . . . . . . . . . . . . . . . . . . Authchips . | . . . . . . . . . . . . . . . . . . . . . . . . . . . . Time . | . . . . . . . . . . . . . . . . . . . . . . . . . . . . Total Part Build Rating . | . . . . . . . . . . . . . . . . . . . . . . . . . . . . Parts Repaired . | . . . . . . . . . . . . . . . . . . . . . . . . . . . . Time . | . . . . . . . . . . . . . . . . . . . . . . . . . . . . Parts Recycled . | . . . . . . . . . . . . . . . . . . . . . . . . . . . . Recycled Matter . | . . . . . . . . . . . . . . . . . . . . . . . . . . . . Retrieved Matter . | . . . . . . . . . . . . . . . . . . . . . . . . . . . . Retrieved Components . | . . . . . . . . . . . . . . . . . . . . . . . . . . . . Parts Scanalyzed . | . . . . . . . . . . . . . . . . . . . . . . . . . . . . Part Schematics Acquired . | . . . . . . . . . . . . . . . . . . . . . . . . . . . . Parts Damaged . | . . . . . . . . . . . . . . . . . . . . . . . . . . . . Bothacking | -11 -10 -10 -10 -9 -8 -7 -6 -6 -6 -6 -5 -5 -5 -5 -5 -5 -5 -5 -5 -4 -4 -4 -4 -4 -4 -3 -2 ------------ Run | Scr Mat Min Exi Min Mat Fac Fac Low Low Dat Pro Fac Was Fac Gar Fac Upp Upp War Pro Fac Was Fac Upp Upp Res Res Used RIF Installer 1 | . . . . . . . . . . . . . . . 1 . . . . . . . . . . . . Robots Hacked . | . . . . . . . . . . . . . . . . . . . . . . . . . . . . Non-combat . | . . . . . . . . . . . . . . . . . . . . . . . . . . . . Combat . | . . . . . . . . . . . . . . . . . . . . . . . . . . . . Robot Hacks Applied . | . . . . . . . . . . . . . . . . . . . . . . . . . . . . Relay Couplers Released 19 | . . . . . . . . . . . . . . . 19 . . . . . . . . . . . . Machine Destruction 19 | . . . . . . . . . . . . . . . 19 . . . . . . . . . . . . Fabnet Peak Effective % . | . . . . . . . . . . . . . . . . . . . . . . . . . . . . Robots Rewired 1 | . . . . . . . . 1 . . . . . . . . . . . . . . . . . . . Allies Hacked . | . . . . . . . . . . . . . . . . . . . . . . . . . . . . Hacks Repelled . | . . . . . . . . . . . . . . . . . . . . . . . . . . . . Allies | -11 -10 -10 -10 -9 -8 -7 -6 -6 -6 -6 -5 -5 -5 -5 -5 -5 -5 -5 -5 -4 -4 -4 -4 -4 -4 -3 -2 -------- Run | Scr Mat Min Exi Min Mat Fac Fac Low Low Dat Pro Fac Was Fac Gar Fac Upp Upp War Pro Fac Was Fac Upp Upp Res Res Total Allies 40 | . . . . 3 . . . 1 . . 1 . 20 3 . 12 . . . . . . . . . . . Largest Group 23 | . . . . 3 . . . 1 1 1 2 1 20 23 23 4 . . . . . . . . . . . Highest-Rated Group 830 | . . . . 40 . . . 29 29 29 125 29 737 830 830 101 . . . . . . . . . . . Highest-Rated Ally 96 | . . . . 16 . . . 29 29 29 96 29 46 46 46 31 . . . . . . . . . . . Total Orders . | . . . . . . . . . . . . . . . . . . . . . . . . . . . . Ally Attacks 216 | . . . . 24 . . . 8 16 . 13 7 . . 147 1 . . . . . . . . . . . Total Damage 4398 | . . . . 181 . . . 153 186 . 304 95 . . 3479 . . . . . . . . . . . . Kills 29 | . . . . 3 . . . 1 1 . . . . . 24 . . . . . . . . . . . . Allies Corrupted . | . . . . . . . . . . . . . . . . . . . . . . . . . . . . Allies Melted 1 | . . . . . . . . . . . 1 . . . . . . . . . . . . . . . . Intel | -11 -10 -10 -10 -9 -8 -7 -6 -6 -6 -6 -5 -5 -5 -5 -5 -5 -5 -5 -5 -4 -4 -4 -4 -4 -4 -3 -2 ------- Run | Scr Mat Min Exi Min Mat Fac Fac Low Low Dat Pro Fac Was Fac Gar Fac Upp Upp War Pro Fac Was Fac Upp Upp Res Res Robot Analysis Total 3 | . . . . . . . 1 . . . . . . . . 2 . . . . . . . . . . . Derelict Logs Recovered 9 | . . . . . . . . 1 1 . 1 . . . . . 2 1 . 2 . . . . 1 . . Drone Launches . | . . . . . . . . . . . . . . . . . . . . . . . . . . . . Drone Recoveries . | . . . . . . . . . . . . . . . . . . . . . . . . . . . . Exploration | -11 -10 -10 -10 -9 -8 -7 -6 -6 -6 -6 -5 -5 -5 -5 -5 -5 -5 -5 -5 -4 -4 -4 -4 -4 -4 -3 -2 ------------- Run | Scr Mat Min Exi Min Mat Fac Fac Low Low Dat Pro Fac Was Fac Gar Fac Upp Upp War Pro Fac Was Fac Upp Upp Res Res Turns Passed 17411 | 80 660 128 71 193 1461 1773 638 786 504 144 582 615 414 73 1375 1789 535 573 209 1724 225 43 871 371 228 1093 253 Spaces Moved 12798 | 57 477 102 60 151 1085 1347 425 588 398 119 460 375 309 50 1033 1189 480 505 196 1180 205 80 650 367 225 564 121 Core 158 | 3 . . . . . . . . . . . . . . . . . . . 151 . . 1 . . 3 . Treads 137 | . . . . . . . . . . . . . . . . . . . . . . . . . . 16 121 Legs 10858 | 54 477 102 60 151 1082 1347 425 588 398 119 460 375 309 50 1033 1189 480 505 196 838 . . 88 . . 532 . Wheels 714 | . . . . . . . . . . . . . . . . . . . . . . . 109 367 225 13 . Hover 928 | . . . . . . . . . . . . . . . . . . . . 191 205 80 452 . . . . Flight 3 | . . . . . 3 . . . . . . . . . . . . . . . . . . . . . . Fastest Speed 43 | 50 120 120 120 120 97 97 122 122 122 122 122 122 125 125 125 103 107 107 107 50 43 43 43 90 90 90 145 Average Speed 111 | 116 120 120 120 120 99 113 122 122 122 122 122 149 125 125 125 122 107 107 107 98 51 43 74 94 100 113 153 Slowest Speed 465 | 120 120 120 120 120 465 122 122 122 122 122 122 192 125 125 125 186 107 107 107 170 111 45 190 110 110 350 160 Overloaded Moves . | . . . . . . . . . . . . . . . . . . . . . . . . . . . . Propulsion Burnouts . | . . . . . . . . . . . . . . . . . . . . . . . . . . . . Robots Hopped . | . . . . . . . . . . . . . . . . . . . . . . . . . . . . Cave-ins Triggered . | . . . . . . . . . . . . . . . . . . . . . . . . . . . . Exploration Rate (%) 43 | 3 70 33 11 41 66 30 9 64 54 75 55 10 96 2 95 21 75 76 27 96 4 84 16 60 25 12 3 Regions Visited 27 Branch Regions 13 Pre-discovered Areas 4 | . . 1 . . . . . . . . . . . . . . 2 . . 1 . . . . . . . Known Exits Taken 22 | 1 1 1 1 1 1 1 1 1 1 1 1 . . 1 . 1 1 1 1 1 . . 1 1 1 1 . Unknown Exits Taken . | . . . . . . . . . . . . . . . . . . . . . . . . . . . . Scrap Searched 19 | . . . . 2 . . . 3 3 . . . . . . . 3 4 . 1 . . . 2 1 . . Spaces Dug . | . . . . . . . . . . . . . . . . . . . . . . . . . . . . Terrain Destroyed 290 | . . . . . . . . . . . . . . . 57 . 17 . . . . . . 139 . 72 5 Melee . | . . . . . . . . . . . . . . . . . . . . . . . . . . . . Projectile 5 | . . . . . . . . . . . . . . . . . . . . . . . . . . . 5 AOE 284 | . . . . . . . . . . . . . . . 57 . 17 . . . . . . 139 . 71 . Terrain Rammed . | . . . . . . . . . . . . . . . . . . . . . . . . . . . . Walls Destroyed . | . . . . . . . . . . . . . . . . . . . . . . . . . . . . Machines Disabled . | . . . . . . . . . . . . . . . . . . . . . . . . . . . . Actions | -11 -10 -10 -10 -9 -8 -7 -6 -6 -6 -6 -5 -5 -5 -5 -5 -5 -5 -5 -5 -4 -4 -4 -4 -4 -4 -3 -2 --------- Run | Scr Mat Min Exi Min Mat Fac Fac Low Low Dat Pro Fac Was Fac Gar Fac Upp Upp War Pro Fac Was Fac Upp Upp Res Res Total 15086 | 67 529 107 59 157 1281 1502 493 624 417 118 470 411 338 61 1114 1506 497 535 195 1659 278 88 943 386 227 863 161 Wait 1077 | . 22 6 . . 24 50 12 10 11 . . 17 15 6 12 176 1 4 . 333 30 . 190 1 . 138 19 Move 12772 | 56 476 101 59 150 1084 1346 424 587 397 118 459 375 308 49 1031 1188 479 504 195 1179 205 79 649 366 224 563 121 Hop . | . . . . . . . . . . . . . . . . . . . . . . . . . . . . Pick Up 50 | 4 7 . . . 9 5 . . 1 . . . 2 1 6 3 . 1 . 5 1 . 2 . . 2 1 Fast Attach 166 | 7 1 . . . 19 15 9 2 2 . 2 3 5 2 3 11 1 3 . 11 7 2 21 7 1 26 6 Attach 49 | . 2 . . 2 9 3 1 . . . . . . . . 3 . 1 . 11 4 3 2 3 . 5 . Detach 33 | . 2 . . . 6 2 1 . . . . . 2 . . . . 3 . 3 2 3 4 3 . 1 1 Swap 36 | . . . . 1 10 4 2 1 1 . . 2 . . 4 1 3 3 . 2 . . 1 . . 1 . Drop 135 | . 1 . . 1 27 20 9 2 5 . 2 2 6 3 12 10 1 2 . 7 3 1 10 1 2 7 1 Fire 738 | . 18 . . 3 93 57 35 21 . . 7 12 . . 36 108 12 14 . 95 26 . 64 5 . 120 12 Melee . | . . . . . . . . . . . . . . . . . . . . . . . . . . . . Ram . | . . . . . . . . . . . . . . . . . . . . . . . . . . . . Kick 3 | . . . . . . . . . . . . . . . . 1 . . . 2 . . . . . . . Crush . | . . . . . . . . . . . . . . . . . . . . . . . . . . . . Escape Stasis 15 | . . . . . . . . . . . . . . . 10 5 . . . . . . . . . . . Rewire 12 | . . . . . . . . 1 . . . . . . . . . . . 11 . . . . . . . Trap . | . . . . . . . . . . . . . . . . . . . . . . . . . . . . Miscellaneous . | . . . . . . . . . . . . . . . . . . . . . . . . . . . . Route ------- -11/Scrapyard -10/Materials (discovered 5 exits: *Mat x3 / *Min x2) -10/Mines -10/Exiles -9/Mines -8/Materials (discovered 3 exits: *Fac x3) -7/Factory (discovered 6 exits: *Fac x4 / Low x2) -6/Factory -6/Lower Caves -6/Lower Caves -6/Data Miner -5/Proximity Caves -5/Factory -5/Waste -5/Factory -5/Garrison (discovered 3 exits: *Fac x3) -5/Factory (discovered 6 exits: Fac x4 / *Upp x2) -5/Upper Caves -5/Upper Caves (discovered 2 exits: *Fac / *War) -5/Warlord -4/Proximity Caves -4/Factory -4/Waste -4/Factory -4/Upper Caves -4/Upper Caves -3/Research (discovered 2 exits: *Res / Tes) -2/Research (discovered 1 exit: *Acc) History --------- Turn | Location | Event 3 | -11/Scrapyard | Identified exit to Materials 3 | -11/Scrapyard | Discovered exit to Materials (range 16) 81 | -11/Scrapyard | Entered Materials 81 | -10/Materials | Evolved 1 slot: Utility x1 211 | -10/Materials | Identified exit to Mines 211 | -10/Materials | Discovered exit to Mines (range 14) 316 | -10/Materials | Build established: Hacker-Mutant 576 | -10/Materials | Identified exit to Materials 576 | -10/Materials | Discovered exit to Materials (range 16) 683 | -10/Materials | Discovered exit to Mines (range 10) 741 | -10/Materials | Entered Mines 742 | -10/Mines | Learned location of Storage (-9) 860 | -10/Mines | Deemed a non-threat by the Exiles lab entrance 861 | -10/Mines | Identified exit to Exiles 861 | -10/Mines | Discovered exit to Exiles (range 5) 869 | -10/Mines | Entered Exiles 902 | -10/Exiles | Met 8R-AWN 907 | -10/Exiles | Attacked by the Exiles 925 | -10/Exiles | Identified exit to Mines 925 | -10/Exiles | Discovered exit to Mines (range 14) 940 | -10/Exiles | Entered Mines 944 | -9/Mines | Assisted by bots powering up and referring to "LRC-V3" 980 | -9/Mines | Identified exit to Materials 980 | -9/Mines | Discovered exit to Materials (range 11) 1073 | -9/Mines | Assembled infested the area 1078 | -9/Mines | Assisted by a Guerilla fighting off Assembled 1133 | -9/Mines | Entered Materials 1133 | -8/Materials | Evolved 4 slots: Power x1, Propulsion x2, Utility x1 2249 | -8/Materials | Identified exit to Factory 2594 | -8/Materials | Entered Factory 2594 | -7/Factory | Evolved 2 slots: Utility x2 2652 | -7/Factory | Identified exit to Lower Caves 2916 | -7/Factory | Identified exit to Factory 4367 | -7/Factory | Entered another Factory area 4367 | -6/Factory | Evolved 2 slots: Utility x2 4497 | -6/Factory | Identified exit to Lower Caves 4497 | -6/Factory | Discovered exit to Lower Caves (range 12) 5005 | -6/Factory | Entered Lower Caves 5104 | -6/Lower Caves | Attracted the attention of an 0b10 outpost 5659 | -6/Lower Caves | Encountered a Warlord checkpoint 5756 | -6/Lower Caves | Identified exit to Lower Caves 5756 | -6/Lower Caves | Discovered exit to Lower Caves (range 6) 5758 | -6/Lower Caves | Attracted the attention of an 0b10 checkpoint 5791 | -6/Lower Caves | Entered another Lower Caves area 5791 | -6/Lower Caves | Accompanied by 1 ally 5865 | -6/Lower Caves | Learned Factory stockpile data 6134 | -6/Lower Caves | Found Prototype Device 6272 | -6/Lower Caves | Identified exit to Data Miner 6272 | -6/Lower Caves | Discovered exit to Data Miner (range 13) 6295 | -6/Lower Caves | Entered Data Miner 6295 | -6/Data Miner | Accompanied by 1 ally 6295 | -6/Data Miner | Identified exit to Proximity Caves 6295 | -6/Data Miner | Discovered exit to Proximity Caves (range 6) 6319 | -6/Data Miner | Met Data Miner 6375 | -6/Data Miner | Received God Mode back door access code from Data Miner 6439 | -6/Data Miner | Entered Proximity Caves 6439 | -5/Proximity Caves | Accompanied by 1 ally 6537 | -5/Proximity Caves | Spotted B-75 Beast 6544 | -5/Proximity Caves | Escorted by Enhanced Grunt 6563 | -5/Proximity Caves | Destroyed B-75 Beast 6780 | -5/Proximity Caves | Learned 12 Factory zone layouts 6999 | -5/Proximity Caves | Identified exit to Factory 6999 | -5/Proximity Caves | Discovered exit to Factory (range 10) 7021 | -5/Proximity Caves | Entered Factory 7021 | -5/Factory | Accompanied by 1 ally 7021 | -5/Factory | Evolved 2 slots: Utility x2 7022 | -5/Factory | Identified exit to Factory 7291 | -5/Factory | Spotted B-75 Beast 7636 | -5/Factory | Sucked down chute 7636 | -5/Factory | Entered Waste 7637 | -5/Waste | Joined by Warlord forces that had cleared the area 7747 | -5/Waste | Build established: Scavenger-Mutant 7932 | -5/Waste | Identified exit to Factory 7932 | -5/Waste | Discovered exit to Factory (range 14) 8050 | -5/Waste | Entered Factory 8050 | -5/Factory | Accompanied by 20 allies 8108 | -5/Factory | Allied Derelicts emerged from ambush trap array 8122 | -5/Factory | Identified exit to Garrison 8123 | -5/Factory | Entered Garrison 8123 | -5/Garrison | Accompanied by 23 allies 8130 | -5/Garrison | Installed Relay Interface Framework 8170 | -5/Garrison | Triggered checkpoint 8222 | -5/Garrison | Found Quantum Capacitor 8281 | -5/Garrison | Garrison Relay disabled 8292 | -5/Garrison | Triggered checkpoint 8358 | -5/Garrison | Triggered checkpoint 8424 | -5/Garrison | Triggered checkpoint 8446 | -5/Garrison | Garrison Relay disabled 8546 | -5/Garrison | Identified exit to Factory 8546 | -5/Garrison | Discovered exit to Factory (range 10) 8620 | -5/Garrison | Triggered checkpoint 8632 | -5/Garrison | Triggered checkpoint 8678 | -5/Garrison | Triggered checkpoint 8727 | -5/Garrison | Phase Generator disabled 8728 | -5/Garrison | Discovered exit to Factory (range 7) 8956 | -5/Garrison | Triggered checkpoint 9030 | -5/Garrison | Garrison Relay disabled 9056 | -5/Garrison | Discovered exit to Factory (range 10) 9133 | -5/Garrison | Build established: Hacker-Mutant 9498 | -5/Garrison | Entered Factory 10231 | -5/Factory | Garrison activated, responded to threat 10235 | -5/Factory | Spotted B-75 Beast 10252 | -5/Factory | Destroyed B-75 Beast 10453 | -5/Factory | Garrison activated, responded to threat 10757 | -5/Factory | Identified exit to Upper Caves 10757 | -5/Factory | Discovered exit to Upper Caves (range 15) 10835 | -5/Factory | Discovered exit to Upper Caves (range 14) 11097 | -5/Factory | Cargo convoy interrupted 11147 | -5/Factory | Lost 3 parts (2n1u) 11287 | -5/Factory | Entered Upper Caves 11412 | -5/Upper Caves | Build established: Scavenger-Mutant 11677 | -5/Upper Caves | Attracted the attention of an 0b10 checkpoint 11724 | -5/Upper Caves | Learned location of Armory (-4) 11798 | -5/Upper Caves | Identified exit to Upper Caves 11798 | -5/Upper Caves | Discovered exit to Upper Caves (range 17) 11822 | -5/Upper Caves | Entered another Upper Caves area 11893 | -5/Upper Caves | Discovered exit to Factory (range 12) 11923 | -5/Upper Caves | Learned 8 Factory zone layouts 12019 | -5/Upper Caves | Attracted the attention of an 0b10 checkpoint 12341 | -5/Upper Caves | Acquired the password to a Derelict Tinkerer's latest research 12351 | -5/Upper Caves | Found Prototype Special Weapon 12351 | -5/Upper Caves | Identified Molecular Deconstructor 12383 | -5/Upper Caves | Identified exit to Warlord 12383 | -5/Upper Caves | Discovered exit to Warlord (range 11) 12395 | -5/Upper Caves | Entered Warlord 12478 | -5/Warlord | Identified exit to Proximity Caves 12478 | -5/Warlord | Discovered exit to Proximity Caves (range 9) 12534 | -5/Warlord | System corruption cleaned by Quarantine Array 12538 | -5/Warlord | RIF detected upon attempting to enter Warlord's base 12538 | -5/Warlord | Attacked by Warlord forces 12550 | -5/Warlord | Spotted FE-DJ9(B) 12550 | -5/Warlord | Spotted DC-H18(B) 12604 | -5/Warlord | Entered Proximity Caves 12759 | -4/Proximity Caves | Learned location of Quarantine (-2) 12915 | -4/Proximity Caves | Spotted B-86 Titan 12947 | -4/Proximity Caves | Destroyed B-86 Titan 13051 | -4/Proximity Caves | Learned Research trap positions 13124 | -4/Proximity Caves | Lost 3 parts (2u1w) 13156 | -4/Proximity Caves | Discovered exit to Factory (range 15) 13443 | -4/Proximity Caves | Received a Behemoth hack from an annoying Tinkerer 13773 | -4/Proximity Caves | Attracted the attention of an 0b10 checkpoint 13898 | -4/Proximity Caves | Attracted the attention of an 0b10 outpost 14017 | -4/Proximity Caves | Core integrity fell below 50% 14052 | -4/Proximity Caves | Lost 10 parts (2p2n4u2w) 14328 | -4/Proximity Caves | Entered Factory 14328 | -4/Factory | Evolved 2 slots: Utility x1, Weapon x1 14553 | -4/Factory | Sucked down chute 14553 | -4/Factory | Entered Waste 14568 | -4/Waste | EMP discharged 14569 | -4/Waste | Spotted C-40 Crusher 14576 | -4/Waste | Spotted C-40 Crusher 14576 | -4/Waste | Spotted C-40 Crusher 14578 | -4/Waste | Spotted C-40 Crusher 14580 | -4/Waste | Spotted C-40 Crusher 14590 | -4/Waste | Identified exit to Factory 14590 | -4/Waste | Discovered exit to Factory (range 13) 14591 | -4/Waste | Spotted C-40 Crusher 14596 | -4/Waste | Entered Factory 15065 | -4/Factory | Lost 5 parts (1p1n1u2w) 15139 | -4/Factory | Lost 4 parts (2p1n1w) 15429 | -4/Factory | System corruption reached 10% 15453 | -4/Factory | Identified exit to Upper Caves 15453 | -4/Factory | Discovered exit to Upper Caves (range 13) 15467 | -4/Factory | Entered Upper Caves 15497 | -4/Upper Caves | Lost 6 parts (3n2u1w) 15628 | -4/Upper Caves | Spotted B-86 Titan 15683 | -4/Upper Caves | Lost 5 parts (1p3u1w) 15763 | -4/Upper Caves | Build established: Hacker-Mutant 15796 | -4/Upper Caves | Identified exit to Upper Caves 15796 | -4/Upper Caves | Discovered exit to Upper Caves (range 13) 15838 | -4/Upper Caves | Entered another Upper Caves area 15842 | -4/Upper Caves | Identified exit to Research 15842 | -4/Upper Caves | Discovered exit to Research (range 12) 16066 | -4/Upper Caves | Entered Research 16066 | -3/Research | Evolved 2 slots: Power x1, Propulsion x1 16067 | -3/Research | Identified exit to Testing 16068 | -3/Research | Loaded intel: 100 trap records 16207 | -3/Research | Found Gamma Bomb Array 16361 | -3/Research | Garrison activated, responded to threat 16380 | -3/Research | Build established: Generator-Mutant 16735 | -3/Research | Garrison activated, responded to threat 16829 | -3/Research | Lost 5 parts (3u2w) 16916 | -3/Research | System corruption reached 10% 16942 | -3/Research | Destroyed 7 combat bots 16946 | -3/Research | Lost 13 parts (3p5n3u2w) 17147 | -3/Research | Identified exit to Research 17147 | -3/Research | Discovered exit to Research (range 12) 17159 | -3/Research | Entered another Research area 17159 | -2/Research | Evolved 2 slots: Propulsion x1, Utility x1 17165 | -2/Research | Lost 5 parts (3p1n1w) 17241 | -2/Research | Identified exit to Access 17241 | -2/Research | Discovered exit to Access (range 14) 17244 | -2/Research | Build established: Scavenger-Mutant 17398 | -2/Research | Spotted B-90 Cyclops 17412 | -2/Research | Self-destructed Last Messages --------------- Investigation squad. 17348_ Dropped Imp. Heavy Treads. 17353_ Acquired Biometal Heavy Treads. 17359_ Acquired Imp. Heavy Treads. 17363_ G-73 Enforcer Adv. Heat Sink blasted off. 17363_ G-73 Enforcer destroyed. 17366_ G-73 Enforcer knocked back. 17370_ G-73 Enforcer destroyed. 17371_ Critical hit (Burn: +37). 17373_ G-73 Enforcer knocked back. 17373_ G-73 Enforcer Adv. Heat Sink blasted off. 17376_ G-73 Enforcer knocked back. 17376_ G-73 Enforcer destroyed. 17383_ G-73 Enforcer knocked back. 17384_ Overheating: Matter decay (-7). 17386_ G-73 Enforcer Phase Gun blasted off. 17386_ G-73 Enforcer knocked back. 17389_ Acquired 1 matter. 17408_ Acquired 30 matter. 17409_ ALERT: Rogue bot located, Programmers report to Research Zone 4K. Map ----- +----------------------------------------------------+ | ?????????# #???# #??????????????????????????? | | ?????????# #???# #??????????????????????????? | | ?????????# #???# #???? ??????????????????? | | ?????????# #?####+###### ????????????????? | | ?????????# #?# #????????????????????? | | ?????????# #?# #????????????????????? | | ?????????# #?# #?? ???????????????? | | ########## ### #?# #??#???????????? | | # # ################?# #?? #?????????? | | # # T ########???####### ### ##????????? | | # + "" ???? ^ +????????? | | # # #########???# #????????? | | # # #???????????# = #????????? | | # ## ##???????????# |=]B #????????? | | ######### #????????????# [!] #????????? | | ????????# #? ?????????## !! #????????? | | ????????# #? ????????# #????????? | | ????????# #?? "????# ??????????? | | ????????# #??? ???# "#????????????? | | ????????# #????? ??# #?????????????? | | ????????+ +?????? ?# #??????????????? | | ????????# #???????? % # %g #??????????????? | | ???????## ##???????+#%#% g##### #??????????????? | | ???????# ######## ##!= #???# #??????????????? | | ???????# ##%;#;####+##?????????????? | | ???????# < #%@ [ #?????????????? | | ???????# # #?????????????? | | ???????# # # #?????????????? | | ???????####### # #?????????????? | | ?????????????# !+% #?????????????? | | ?????????????# # """ """ #?????????????? | | ?????????????# # """T""" #?????????????? | | ?????????????########+###;##########?????????????? | | ??????????????# T #????????????????????? | | ??????????????# % #????????????????????? | | ??????????????# [[]##???????????????????? | | ??????????????# [[ !#???????????????????? | | ??????????????#! [ ##???????????????????? | | ??????????????# #????????????????????? | | ??????????????###############????????????????????? | | | | | | | | | | | | | | | | | | | | | +----------------------------------------------------+ Best States ------------- Heat Dissipation 111 Energy Generation 63 Energy Capacity 715 Matter Stores 500 Matter Capacity 500 Sight Range 23 Robot Scan Range 16 Terrain Scan Range 24 Terrain Scan Density 10 ECM Strength 1 Base Temperature (-) 200 Armor Coverage 600 Resistance: KI 35 Resistance: TH 35 Resistance: EX 35 Resistance: EM 35 Resistance: I 35 Resistance: S 35 Resistance: P 35 Utility Shielding 66 Weapon Shielding 33 Weapon Cycling 20 Evasion (%) 59 Targeting Accuracy 5 Recoil Reduction 2 Particle Charging 20 Offensive Hacking 30 Item Schematics ----------------- Combat Drone Bay | -6/Data Miner | Free Lgt. Regenerative Plating | -6/Data Miner | Free Exp. Heat Sink | -6/Data Miner | Free Enh. Flexi-carbon Leg | -6/Data Miner | Free Hvy. Proton Missile Launcher | -6/Data Miner | Free Field Propulsion Array | -6/Data Miner | Free Adv. Coolant Injector | -6/Data Miner | Free Matter Neutralizer | -6/Data Miner | Free Mic. Antimatter Reactor | -6/Data Miner | Free Robot Schematics ------------------ R-10 Processor | -6/Data Miner | Free H-66 Slayer | -6/Data Miner | Free G-50 Soldier | -6/Data Miner | Free B-60 Warrior | -6/Data Miner | Free Fabricated ------------ Nothing Alien Tech Used ----------------- None Achievements -------------- Below Maybe Next Time I'll Detach My Launcher Universal Adapter Challenges ------------ None Game ------ Seed ActuatorPotentialReactor Manual? 0 Play Time 03:16:55 Cumulative 51.0 hours Start 2022.04.06 @ 13:51:53 End 2022.04.06 @ 19:26:22 Sessions 1 Manual Loads 0 Difficulty Explorer Special Mode None Game No. 12 Rogue 0 Adventurer 1 Explorer 11 Win Type - Total 3 Types 2/0/0/1/0/0/0/0/0 Lore% 35 Gallery% 52 Achievement% 44 Wizard Run 0 Options --------- ASCII 0 Keyboard 0 Movement Arrows Keybinds 0 Fullscreen 0 Font 14/Terminus Map View 76x50 Tactical HUD 1 Map Filters NONE Filters NONE Steam 1 RUN: 8f8793f9-9f1d-4f04-b66d-36f868e8c589